Cogmind - Beta 12 @@@ ROGUE MODE // 2023.03.07 @ 07:53:22 Player: ArabianSandBoa Result: Destroyed by G-47 Trooper with Particle Gun Performance ------------- Evolutions (2) 1000 Regions Visited (10) 2000 Robots Destroyed (173) 865 Value Destroyed (6226) 6226 Prototype IDs (14) 280 Alien Tech Used (0) 0 Bonus (1975) 1975 TOTAL SCORE: 12346 Bonus ------- High Alert Combat Kills 1668 Follower Combat Kills 98 Entered Garrisons 400 Friendly Fire -191 Cogmind --------- Core Integrity 0/550 Matter 56/300 Energy 100/100 System Corruption 5% Temperature Cool (9) Movement Rolling (270) Ox12 Location -8/Garrison Parts ------- > --- POWER (1) -------- (None) > --- PROPULSION (2) --- Armored Wheel > --- UTILITY (6) ------ Improved Cooling System Cargo Storage Unit Reflective Plating > --- WEAPON (2) ------- Enhanced Autogun Enhanced Autogun > --- INVENTORY (30) --- Improved Deuterium Engine Improved Deuterium Engine Armored Wheel Armored Wheel Improved Cooling System Cargo Storage Unit Compact Battery (200) Trap Scanner Improved Sensor Array Improved Signal Interpreter Transport Network Coupler Utility Shielding Weapon Shielding Hacking Suite Long-range Tractor Beam EM Pulse Cannon Heavy Particle Cannon Enhanced Autogun Gauss Cannon Gauss Cannon EMP Blaster Mini Grenade Launcher Improved Datajack Plasma Cutter Heavy Explosive Trap Heavy Explosive Trap Heavy Explosive Trap Peak State ------------ > --- POWER ------------ Light Angular Momentum Engine > --- PROPULSION ------- Armored Wheel Armored Wheel > --- UTILITY ---------- Advanced Heat Sink Cargo Storage Unit Trap Scanner Improved Targeting Computer Improved Power Shielding > --- WEAPON ----------- Heavy Particle Gun Heavy Particle Gun > --- INVENTORY -------- Light Nuclear Core Light Nuclear Core Armored Wheel Armored Wheel Armored Wheel Cargo Storage Unit Compact Battery Improved Sensor Array Improved Signal Interpreter Improved Terrain Scanner Transport Network Coupler Hacking Suite Hacking Suite System Shield Long-range Tractor Beam Advanced Beam Cannon Heavy Particle Cannon Ion Cannon Enhanced Autogun Enhanced Autogun Enhanced Autogun EMP Blaster Mini Grenade Launcher Improved Datajack Plasma Cutter Heavy Explosive Trap Heavy Explosive Trap Heavy Explosive Trap Heavy Explosive Trap [Rating: 39] Favorites ----------- Power Cooled Ion Engine Engine Cooled Ion Engine Power Core Light Nuclear Core Propulsion Compact Wheel Leg Aluminum Leg Wheel Compact Wheel Utility Cargo Storage Unit Device Improved Heat Sink Storage Cargo Storage Unit Processor Improved Targeting Computer Hackware System Shield Protection Improved Light Armor Plating Weapon Advanced Beam Cannon Energy Gun Improved EM Shotgun Energy Cannon Advanced Beam Cannon Ballistic Gun Assault Rifle Ballistic Cannon Light Cannon Launcher Mini Grenade Launcher Special Weapon Plasma Cutter Build | -11 -10 -10 -9 -9 -9 -8 -8 -8 -8 -8 ------- Run | Jun Mat Min Mat Min Exi Min Mat Gar Mat Gar Slots Evolved 4 | . . . 2 . . . 2 . . . Power . | . . . . . . . . . . . Propulsion . | . . . . . . . . . . . Utility 4 | . . . 2 . . . 2 . . . Weapon . | . . . . . . . . . . . Parts Attached 129 | . 18 . 27 1 . 5 2 19 46 11 Power 11 | . 4 . 3 . . . . 1 3 . Engine 9 | . 3 . 3 . . . . 1 2 . Core 2 | . 1 . . . . . . . 1 . Reactor . | . . . . . . . . . . . Propulsion 25 | . 8 . 6 1 . . . 4 6 . Treads . | . . . . . . . . . . . Leg . | . . . . . . . . . . . Wheel 25 | . 8 . 6 1 . . . 4 6 . Hover . | . . . . . . . . . . . Flight . | . . . . . . . . . . . Utility 34 | . 3 . 8 . . . 2 4 15 2 Device 14 | . 1 . 4 . . . 1 2 6 . Storage 2 | . 2 . . . . . . . . . Processor 2 | . . . 1 . . . . . 1 . Hackware 3 | . . . . . . . . . 3 . Protection 13 | . . . 3 . . . 1 2 5 2 Artifact . | . . . . . . . . . . . Weapon 59 | . 3 . 10 . . 5 . 10 22 9 Energy Gun 16 | . 2 . 1 . . 1 . 7 5 . Energy Cannon 18 | . . . 5 . . 2 . . 10 1 Ballistic Gun 11 | . 1 . 3 . . . . . 3 4 Ballistic Cannon 1 | . . . 1 . . . . . . . Launcher 12 | . . . . . . 2 . 2 4 4 Special Weapon 1 | . . . . . . . . 1 . . Impact Weapon . | . . . . . . . . . . . Slashing Weapon . | . . . . . . . . . . . Piercing Weapon . | . . . . . . . . . . . Special Melee Weapon . | . . . . . . . . . . . Unidentified Prototypes 4 | . . . 3 . . . . . 1 . Parts Lost 34 | . 6 . 7 . . . . 6 10 5 Power 4 | . 2 . 1 . . . . . . 1 Propulsion 9 | . 2 . 3 . . . . 1 2 1 Utility 14 | . . . 2 . . . . 3 6 3 Weapon 7 | . 2 . 1 . . . . 2 2 . Highest Loss Streak 4 | . 2 . 3 . . . . 3 3 4 To Critical Strikes . | . . . . . . . . . . . Average Slot Usage (%) 87 | . 92 85 84 86 88 88 87 88 88 87 Engine 9 | . 12 14 9 11 11 11 9 9 8 8 Wheel 20 | . 27 28 20 20 22 22 18 16 17 16 Device 11 | . 5 . 8 11 11 11 15 14 16 9 Storage 10 | . 15 14 11 11 11 11 9 9 9 9 Processor 7 | . . . 10 11 11 11 9 6 6 5 Hackware 1 | . . . . . . . . . 5 2 Protection 5 | . . . 2 . . . 9 15 6 18 Energy Gun 6 | . 9 14 3 . . 4 9 13 5 . Energy Cannon 8 | . . . 7 22 22 16 9 1 10 2 Ballistic Gun 4 | . 18 14 6 . . . . . 1 13 Naked Turns . | . . . . . . . . . . . Heaviest Build 172 | 14 148 148 157 157 157 157 166 166 166 172 Greatest Support 32 | 20 32 32 32 32 32 32 32 32 24 24 Greatest Overweight (x) 13 | . 4 4 9 9 4 4 5 10 13 13 Average Overweight (x) 4 | . 2 4 5 4 4 4 5 5 6 6 Largest Inventory Capacity 30 | . 30 30 30 30 30 30 30 30 30 30 Average Capacity 29 | . 24 30 30 30 30 30 30 30 30 30 Most Carried 30 | . 30 30 30 29 30 30 29 30 30 30 Average Carried 27 | . 18 29 27 27 29 29 28 28 29 28 Final Capacity 30 | 8 30 30 30 30 30 30 30 30 30 30 Final Carried 30 | 6 29 30 27 29 30 30 28 28 30 28 Class Distribution -------------------- 91% | Hauler-Mutant 5% | Mutant Dominant Class ---------------- Hauler-Mutant | -10/Materials Hauler-Mutant | -10/Mines Hauler-Mutant | -9/Materials Hauler-Mutant | -9/Mines Hauler-Mutant | -9/Exiles Hauler-Mutant | -8/Mines Hauler-Mutant | -8/Materials Hauler-Mutant | -8/Garrison Hauler-Mutant | -8/Materials Hauler-Mutant | -8/Garrison Resources | -11 -10 -10 -9 -9 -9 -8 -8 -8 -8 -8 ----------- Run | Jun Mat Min Mat Min Exi Min Mat Gar Mat Gar Matter Collected 2886 | 200 676 . 598 111 . 169 . 272 604 256 Remotely . | . . . . . . . . . . . Salvage Created 7444 | . 1029 . 1329 161 . 70 . 1563 2950 342 Parts 406 | . 60 . 77 12 . 12 . 77 153 15 Haulers Intercepted 13 | . 2 . 5 . . . . . 6 . Recyclers Shooed 11 | . 3 . 4 . . . . . 4 . Parts Field Recycled . | . . . . . . . . . . . Retrieved Matter . | . . . . . . . . . . . Parts Self-Destructed . | . . . . . . . . . . . Prevented . | . . . . . . . . . . . Kills | -11 -10 -10 -9 -9 -9 -8 -8 -8 -8 -8 ------- Run | Jun Mat Min Mat Min Exi Min Mat Gar Mat Gar Combat Hostiles Destroyed 121 | . 14 . 16 4 . 7 . 27 46 7 Guns 59 | . 14 . 6 . . . . 17 16 6 Cannons 35 | . . . 9 4 . 3 . 4 15 . AOE 23 | . . . . . . 4 . 6 12 1 Classes Destroyed 14 | . 7 . 5 . . . . . 2 . Worker 8 | . 4 . . . . . . . 4 . Builder 11 | . . . 2 . . . . . 9 . Tunneler 2 | . . . 1 . . . . . 1 . Hauler 13 | . 2 . 5 . . . . . 6 . Recycler 11 | . 4 . 3 1 . . . . 3 . Operator 5 | . 1 . 4 . . . . . . . Watcher 10 | . 2 . 4 . . . . . 4 . Swarmer 20 | . 3 . . 4 . 7 . 6 . . Grunt 74 | . 11 . 11 . . . . 17 32 3 Brawler 3 | . . . 1 . . . . 1 1 . Duelist 4 | . . . 1 . . . . . 2 1 Protector 1 | . . . . . . . . . 1 . Sentry 15 | . . . 3 . . . . 4 8 . Hunter 5 | . . . . . . . . . 2 3 Best Kill Streak 13 | . 8 . 6 3 . 3 . 4 13 3 Combat Bots Only 7 | . 3 . 3 3 . 3 . 4 7 3 Max Kills in Single Turn 5 | . 2 . 1 1 . 3 . 2 5 1 Gunslinging 1 | . 1 . . . . . . 1 1 . Exploded 3 | . . . . . . 3 . 2 2 1 Melee . | . . . . . . . . . . . Uniques/NPCs Destroyed . | . . . . . . . . . . . Combat | -11 -10 -10 -9 -9 -9 -8 -8 -8 -8 -8 -------- Run | Jun Mat Min Mat Min Exi Min Mat Gar Mat Gar Damage Taken 6178 | . 771 . 1344 51 . 71 . 1068 2160 713 Core 1032 | . 112 . 345 . . 21 . 139 391 24 Absorbed by Shields 173 | . . . . . . . . . 173 . Redirected to Shielding 112 | . . . . . . . . . 112 . Core Remaining (%) 54 | 100 . 55 . . . 8 . . . . Volleys Fired 585 | . 87 . 102 8 . 6 . 164 179 39 Largest 2 | . 2 . 2 2 . 2 . 2 2 2 Hottest 132 | . 85 . 124 124 . 124 . 132 130 75 Shots Fired 1018 | . 168 . 204 16 . 10 . 225 326 69 Gun 600 | . 168 . 109 . . 2 . 126 139 56 Cannon 321 | . . . 95 16 . 6 . 21 176 7 Launcher 31 | . . . . . . 2 . 12 11 6 Special 66 | . . . . . . . . 66 . . Kinetic 343 | . 142 . 104 . . . . . 41 56 Thermal 531 | . 19 . 71 8 . 4 . 167 255 7 Explosive 25 | . . . . . . 2 . 12 9 2 Electromagnetic 119 | . 7 . 29 8 . 4 . 46 21 4 Robot Hit Streak 58 | . 14 . 13 6 . 3 . 58 17 6 Robot Miss Streak 6 | . 6 . 4 2 . 2 . 3 4 3 Penetration Max . | . . . . . . . . . . . Secondary Targets 12 | . 3 . 1 . . . . 4 2 2 Max Gunslinging Chain 1 | . 1 . 1 . . . . 1 1 1 Shots Hit Robots 649 | . 113 . 134 8 . 4 . 134 219 37 Core Hits 318 | . 42 . 43 5 . 9 . 81 122 16 Critical Kills 4 | . 1 . . . . . . . 2 1 Critical Parts Destroyed . | . . . . . . . . . . . Critical Strikes 17 | . 3 . 4 . . . . 5 4 1 Burn 8 | . 2 . 1 . . . . 3 2 . Meltdown 2 | . . . . . . . . . 2 . Destroy 2 | . 1 . . . . . . . . 1 Blast 1 | . . . 1 . . . . . . . Corrupt 2 | . . . 2 . . . . . . . Sever 2 | . . . . . . . . 2 . . Melee Attacks . | . . . . . . . . . . . Impact . | . . . . . . . . . . . Slashing . | . . . . . . . . . . . Piercing . | . . . . . . . . . . . Sneak Attacks . | . . . . . . . . . . . Combat Hostiles . | . . . . . . . . . . . Follow-up Attacks . | . . . . . . . . . . . Damage Inflicted 13687 | . 1498 . 2349 164 . 292 . 2389 6370 625 Guns 6073 | . 1498 . 1066 . . 12 . 983 2026 488 Cannons 4206 | . . . 1248 164 . 100 . 162 2532 . Explosions 2707 | . . . 35 . . 180 . 543 1812 137 Melee . | . . . . . . . . . . . Ramming . | . . . . . . . . . . . Kinetic 3302 | . 1233 . 1040 . . . . . 541 488 Thermal 6597 | . 162 . 843 62 . 82 . 1585 3863 . Explosive 1918 | . . . . . . 180 . 249 1443 46 Electromagnetic 1870 | . 103 . 466 102 . 30 . 555 523 91 Impact . | . . . . . . . . . . . Slashing . | . . . . . . . . . . . Piercing . | . . . . . . . . . . . Highest Corruption 5 | . . . . . . . . . 5 5 Average Corruption 3 | . . . . . . . . . 2 5 Corruption Purged . | . . . . . . . . . . . Corruption Blocked . | . . . . . . . . . . . Effects 29 | . . . . . . . . . 20 9 Message Errors 9 | . . . . . . . . . 7 2 Matter Fused 4 | . . . . . . . . . 2 2 Heat Flow Errors 5 | . . . . . . . . . 3 2 Data Loss (minor) 1 | . . . . . . . . . 1 . Data Loss (major) 4 | . . . . . . . . . 3 1 Misfires 2 | . . . . . . . . . 2 . Alerts 3 | . . . . . . . . . 1 2 Weapon Failures 1 | . . . . . . . . . 1 . Overload Shots . | . . . . . . . . . . . Overflow Damage 112 | . . . 1 1 . 1 . 18 91 . Projectiles 61 | . . . 1 1 . 1 . . 58 . Explosions 51 | . . . . . . . . 18 33 . Melee . | . . . . . . . . . . . Knockbacks 4 | . . . 4 . . . . . . . Impact . | . . . . . . . . . . . Kinetic 4 | . . . 4 . . . . . . . Secondary . | . . . . . . . . . . . Self-Inflicted Damage 428 | . . . 29 . . 10 . 166 198 25 Shots 16 | . . . 1 . . 1 . 6 6 2 Rammed . | . . . . . . . . . . . Targets Rammed . | . . . . . . . . . . . Kicked . | . . . . . . . . . . . Crushed . | . . . . . . . . . . . Highest Temperature 331 | . 96 . 331 12 . 6 . 45 205 244 Average Temperature 68 | . 35 . 117 6 . 4 . 14 29 94 Received Heat Transfer 2583 | . 351 . 594 . . . . 450 990 198 Effects 1 | . . . 1 . . . . . . . Energy Bleed 1 | . . . 1 . . . . . . . Siege Activations . | . . . . . . . . . . . Robots Corrupted 1 | . . . 1 . . . . . . . Combat Hostiles 1 | . . . 1 . . . . . . . Parts Fried 3 | . . . 3 . . . . . . . Impact Corruptions . | . . . . . . . . . . . Robots Melted 3 | . . . . . . . . . 3 . Combat Hostiles 3 | . . . . . . . . . 3 . Parts Melted 34 | . 1 . 3 . . . . 7 23 . Heat Transferred 13263 | . 518 . 1863 111 . 148 . 3950 6673 . Parts Sabotaged . | . . . . . . . . . . . Parts Stolen . | . . . . . . . . . . . Parts Stripped . | . . . . . . . . . . . Power Chain Reactions 6 | . . . 1 . . . . 3 2 . Missiles Intercepted . | . . . . . . . . . . . Alert | -11 -10 -10 -9 -9 -9 -8 -8 -8 -8 -8 ------- Run | Jun Mat Min Mat Min Exi Min Mat Gar Mat Gar Peak Influence 1510 | . 344 39 254 106 . 300 61 1272 1510 1133 Initial 881 | . . 39 14 79 . . 61 39 620 881 Average 476 | . 176 39 128 76 . 176 61 617 1088 971 Maximum Alert Level 4 | . 1 . 1 . . 1 . 4 4 4 Low Security (%) 45 | . 67 100 82 100 . 70 100 13 . . Level 1 12 | . 32 . 17 . . 29 . 10 . . Level 2 11 | . . . . . . . . 38 13 . Level 3 17 | . . . . . . . . 25 40 92 Level 4 12 | . . . . . . . . 10 46 7 Level 5 . | . . . . . . . . . . . High Security . | . . . . . . . . . . . Max Security . | . . . . . . . . . . . Squads Dispatched 19 | . 6 . 5 . . . . . 8 . Investigation 9 | . 4 . 3 . . . . . 2 . Extermination . | . . . . . . . . . . . Reinforcement 8 | . 2 . 2 . . . . . 4 . Assault 1 | . . . . . . . . . 1 . Garrison 1 | . . . . . . . . . 1 . Intercept . | . . . . . . . . . . . Searches Triggered . | . . . . . . . . . . . Construction Impeded 2 | . . . . . . . . . 2 . Haulers Reinforced . | . . . . . . . . . . . Active Scanning Responses . | . . . . . . . . . . . Cargo Convoy Interrupts . | . . . . . . . . . . . Stealth | -11 -10 -10 -9 -9 -9 -8 -8 -8 -8 -8 --------- Run | Jun Mat Min Mat Min Exi Min Mat Gar Mat Gar Distress Signals 11 | . 3 . 1 . . . . . 7 . Communications Jammed . | . . . . . . . . . . . Distress Signals . | . . . . . . . . . . . Times Spotted 177 | . 28 . 26 5 . 14 . 32 64 8 Peak Tracking Total 9 | . 9 . 5 3 . 4 . 4 8 3 Tactical Retreats 4 | . 1 . . . . . . . 3 . Traps | -11 -10 -10 -9 -9 -9 -8 -8 -8 -8 -8 ------- Run | Jun Mat Min Mat Min Exi Min Mat Gar Mat Gar Traps Triggered 6 | . 1 . 1 . . . . 3 1 . Indirectly . | . . . . . . . . . . . Trap Hack Attempts . | . . . . . . . . . . . Triggered . | . . . . . . . . . . . Disarmed . | . . . . . . . . . . . Reprogrammed . | . . . . . . . . . . . Reused . | . . . . . . . . . . . Traps Extracted . | . . . . . . . . . . . Installed 1 | . . . . . . . . . 1 . Triggered . | . . . . . . . . . . . Most Traps Carried 4 | . . 4 4 4 4 4 4 4 4 3 Exploded 3 | . . . . . . . . 3 . . Machines | -11 -10 -10 -9 -9 -9 -8 -8 -8 -8 -8 ---------- Run | Jun Mat Min Mat Min Exi Min Mat Gar Mat Gar Machines Disabled 19 | . . . 3 . . 1 . 11 2 2 Max in Single Turn 2 | . . . 1 . . 1 . 2 1 1 Garrison Relay 6 | . . . . . . . . 4 . 2 Phase Generator 1 | . . . . . . . . 1 . . Machines Repaired . | . . . . . . . . . . . Machines Sabotaged . | . . . . . . . . . . . Overloaded Fab Kills . | . . . . . . . . . . . Hacking | -11 -10 -10 -9 -9 -9 -8 -8 -8 -8 -8 --------- Run | Jun Mat Min Mat Min Exi Min Mat Gar Mat Gar Machines Accessed 28 | . 7 . 6 1 . . 1 2 10 1 Terminals 21 | . 5 . 5 1 . . . 2 7 1 Fabricators . | . . . . . . . . . . . Repair Stations . | . . . . . . . . . . . Recycling Units 3 | . 2 . . . . . . . 1 . Scanalyzers 2 | . . . 1 . . . . . 1 . Garrison Access 2 | . . . . . . . 1 . 1 . Total Hacks 90 | . 21 . 25 5 . . 1 3 33 2 Successful 56 | . 14 . 13 2 . . 1 1 24 1 Failed 33 | . 7 . 12 3 . . . 2 8 1 Catastrophic 3 | . . . . . . . . 1 1 1 Database Lockouts 1 | . . . . . . . . . 1 . Manual 37 | . 9 . 9 4 . . . . 15 . Terminals 73 | . 14 . 20 5 . . . 3 29 2 Fabricators . | . . . . . . . . . . . Repair Stations . | . . . . . . . . . . . Recycling Units 9 | . 7 . . . . . . . 2 . Scanalyzers 6 | . . . 5 . . . . . 1 . Garrison Access 2 | . . . . . . . 1 . 1 . Terminal Hacks 32 | . 5 . 7 2 . . . 1 16 1 Robot Analysis 2 | . . . . 1 . . . . 1 . Prototype ID Bank 7 | . 1 . 3 . . . . . 3 . Branch Access Points 2 | . . . 1 . . . . . 1 . Emergency Access Points 2 | . . . . . . . . . 1 1 Scanalyzer Index 1 | . . . 1 . . . . . . . Garrison Index 1 | . . . . . . . . . 1 . Unreport Threat 2 | . . . . . . . . . 2 . Hauler Manifests 2 | . 1 . 1 . . . . . . . Registered Prototypes 1 | . . . . . . . . . 1 . Zone Layout 11 | . 3 . 1 1 . . . . 6 . Garrison Registry 1 | . . . . . . . . 1 . . Fabricator Hacks . | . . . . . . . . . . . Repair Station Hacks . | . . . . . . . . . . . Recycling Unit Hacks 4 | . 3 . . . . . . . 1 . Report Inventory 3 | . 2 . . . . . . . 1 . Retrieve Components 1 | . 1 . . . . . . . . . Scanalyzer 2 | . . . 2 . . . . . . . Insert Component 1 | . . . 1 . . . . . . . Analyze 1 | . . . 1 . . . . . . . Garrison Access Hacks 2 | . . . . . . . 1 . 1 . Unlock Access 2 | . . . . . . . 1 . 1 . Unauthorized Hacks 16 | . 6 . 4 . . . . . 6 . Terminals 10 | . 3 . 3 . . . . . 4 . Botnet 10 | . 3 . 3 . . . . . 4 . Fabricators . | . . . . . . . . . . . Repair Stations . | . . . . . . . . . . . Recycling Units 4 | . 3 . . . . . . . 1 . Reject 1 | . 1 . . . . . . . . . Tunnel 3 | . 2 . . . . . . . 1 . Scanalyzers 2 | . . . 1 . . . . . 1 . Extract 2 | . . . 1 . . . . . 1 . Garrison Access . | . . . . . . . . . . . Data Cores Recovered 2 | . . . 2 . . . . . . . Used . | . . . . . . . . . . . Hacking Detections 22 | . 6 . 5 1 . . . 2 7 1 Full Trace Events 6 | . 2 . 1 1 . . . 1 1 . Feedback Events 1 | . . . . . . . . . 1 . Corruption 1 | . . . . . . . . . 1 . Feedback Blocked . | . . . . . . . . . . . Robot Schematics Acquired . | . . . . . . . . . . . Robots Built . | . . . . . . . . . . . Authchips . | . . . . . . . . . . . Time . | . . . . . . . . . . . Total Robot Build Rating . | . . . . . . . . . . . Part Schematics Acquired 10 | . . . 7 . . . . . 3 . Parts Built . | . . . . . . . . . . . Authchips . | . . . . . . . . . . . Time . | . . . . . . . . . . . Total Part Build Rating . | . . . . . . . . . . . Parts Repaired . | . . . . . . . . . . . Time . | . . . . . . . . . . . Parts Recycled . | . . . . . . . . . . . Recycled Matter . | . . . . . . . . . . . Retrieved Matter . | . . . . . . . . . . . Retrieved Components 7 | . 7 . . . . . . . . . Parts Scanalyzed 1 | . . . 1 . . . . . . . Part Schematics Acquired 1 | . . . 1 . . . . . . . Parts Damaged . | . . . . . . . . . . . Bothacking | -11 -10 -10 -9 -9 -9 -8 -8 -8 -8 -8 ------------ Run | Jun Mat Min Mat Min Exi Min Mat Gar Mat Gar Used RIF Installer . | . . . . . . . . . . . Robots Hacked . | . . . . . . . . . . . Non-combat . | . . . . . . . . . . . Combat . | . . . . . . . . . . . Robot Hacks Applied . | . . . . . . . . . . . Relay Couplers Released 23 | . . . . . . . . 16 . 7 Machine Destruction 23 | . . . . . . . . 16 . 7 Fabnet Peak Effective % . | . . . . . . . . . . . Robots Rewired 3 | . . . . . . . . 3 . . Allies Hacked . | . . . . . . . . . . . Hacks Repelled . | . . . . . . . . . . . Allies | -11 -10 -10 -9 -9 -9 -8 -8 -8 -8 -8 -------- Run | Jun Mat Min Mat Min Exi Min Mat Gar Mat Gar Total Allies 9 | . . . . 6 . . . 3 . . Largest Group 5 | . . . . 5 5 3 2 3 . . Highest-Rated Group 89 | . . . . 89 89 40 32 32 . . Highest-Rated Ally 31 | . . . . 31 31 16 16 16 . . Total Orders . | . . . . . . . . . . . Ally Attacks 43 | . . . . 6 . 18 . 19 . . Total Damage 388 | . . . . 68 . 178 . 142 . . Kills 10 | . . . . 2 . 6 . 2 . . Allies Corrupted . | . . . . . . . . . . . Allies Melted . | . . . . . . . . . . . Intel | -11 -10 -10 -9 -9 -9 -8 -8 -8 -8 -8 ------- Run | Jun Mat Min Mat Min Exi Min Mat Gar Mat Gar Robot Analysis Total 1 | . . . . 1 . . . . . . Derelict Logs Recovered 2 | . . . . 2 . . . . . . Drone Launches . | . . . . . . . . . . . Drone Recoveries . | . . . . . . . . . . . Exploration | -11 -10 -10 -9 -9 -9 -8 -8 -8 -8 -8 ------------- Run | Jun Mat Min Mat Min Exi Min Mat Gar Mat Gar Turns Passed 9063 | . 1381 73 1316 1060 486 722 25 1817 1830 353 Spaces Moved 3840 | 1 636 43 430 579 301 421 13 646 643 127 Core 1 | . 1 . . . . . . . . . Treads . | . . . . . . . . . . . Legs 9 | 1 8 . . . . . . . . . Wheels 3830 | . 627 43 430 579 301 421 13 646 643 127 Hover . | . . . . . . . . . . . Flight . | . . . . . . . . . . . Fastest Speed 90 | 120 90 160 160 160 160 160 175 160 180 180 Average Speed 167 | 120 137 160 173 169 160 160 175 183 180 189 Slowest Speed 285 | 120 250 160 235 235 160 160 175 250 285 285 Overloaded Moves . | . . . . . . . . . . . Propulsion Burnouts . | . . . . . . . . . . . Robots Hopped . | . . . . . . . . . . . Cave-ins Triggered . | . . . . . . . . . . . Exploration Rate (%) 55 | 2 91 17 54 98 79 94 5 85 60 21 Regions Visited 10 Branch Regions 4 Pre-discovered Areas 3 | . 2 . . . . . . . 1 . Known Exits Taken 3 | . . . 1 . . . 1 . 1 . Unknown Exits Taken 6 | 1 1 1 . 1 1 1 . . . . Scrap Searched 3 | . . . . 2 . 1 . . . . Spaces Dug 23 | . . . . . . . . . 11 12 Terrain Destroyed 300 | . . . 3 . . 21 . 150 103 23 Melee . | . . . . . . . . . . . Projectile 35 | . . . . . . . . . 35 . AOE 265 | . . . 3 . . 21 . 150 68 23 Terrain Rammed . | . . . . . . . . . . . Walls Destroyed . | . . . . . . . . . . . Machines Disabled . | . . . . . . . . . . . Actions | -11 -10 -10 -9 -9 -9 -8 -8 -8 -8 -8 --------- Run | Jun Mat Min Mat Min Exi Min Mat Gar Mat Gar Total 5436 | . 979 49 801 640 307 460 15 986 1010 189 Wait 584 | . 165 . 189 50 . 19 . 89 61 11 Move 3832 | . 635 42 429 578 300 420 13 645 643 127 Hop . | . . . . . . . . . . . Pick Up 146 | . 54 4 24 3 4 5 . 12 40 . Fast Attach 23 | . 5 . 6 . . . . 4 8 . Attach 41 | . 6 . 9 1 . 1 2 5 15 2 Detach 8 | . . . 3 . . . . 1 4 . Swap 65 | . 7 . 12 . . 4 . 10 23 9 Drop 108 | . 20 3 27 . 3 5 . 13 36 1 Fire 585 | . 87 . 102 8 . 6 . 164 179 39 Melee . | . . . . . . . . . . . Ram . | . . . . . . . . . . . Kick . | . . . . . . . . . . . Crush . | . . . . . . . . . . . Escape Stasis 24 | . . . . . . . . 24 . . Rewire 19 | . . . . . . . . 19 . . Trap 1 | . . . . . . . . . 1 . Miscellaneous . | . . . . . . . . . . . Route ------- -11/Junkyard -10/Materials (discovered 5 exits: *Mat x3 / [*Min x2]) -10/Mines -9/Materials (discovered 3 exits: *Mat / *Min / Sto) -9/Mines (discovered 3 exits: *Mat x2 / [*Exi]) -9/Exiles -8/Mines (discovered 2 exits: *Mat x2) -8/Materials (discovered 2 exits: Fac / Gar) -8/Garrison (discovered 4 exits: *Mat x4) -8/Materials (discovered 3 exits: *Fac x2 / Gar) -8/Garrison History --------- Turn | Location | Event 1 | -11/Junkyard | Discovered new exit (range 0) 1 | -11/Junkyard | Entered Materials 92 | -10/Materials | Discovered new exit (range 18) 320 | -10/Materials | Build established: Mutant 347 | -10/Materials | Discovered new exit (range 16) 472 | -10/Materials | Discovered new exit (range 15) 899 | -10/Materials | Discovered new exit (range 4) 1035 | -10/Materials | Build established: Hauler-Mutant 1182 | -10/Materials | Discovered new exit (range 4) 1382 | -10/Materials | Entered Mines 1402 | -10/Mines | Found a hidden stash of uninstalled traps 1446 | -10/Mines | Discovered new exit (range 6) 1455 | -10/Mines | Entered Materials 1455 | -9/Materials | Evolved 2 slots: Utility x2 1763 | -9/Materials | Lost 3 parts (2u1w) 1887 | -9/Materials | Discovered new exit (range 5) 2236 | -9/Materials | Core integrity fell below 50% 2674 | -9/Materials | Core integrity fell below 20% 2710 | -9/Materials | Discovered new exit (range 20) 2710 | -9/Materials | Identified exit to Mines 2710 | -9/Materials | Identified exit to Storage 2771 | -9/Materials | Entered Mines 2774 | -9/Mines | Received a Mining Laser from a helpful Derelict 2939 | -9/Mines | Learned location of 1 exit from Materials 3067 | -9/Mines | Discovered new exit (range 6) 3169 | -9/Mines | Assisted by bots powering up and referring to "LRC-V3" 3388 | -9/Mines | Deemed a non-threat by the Exiles lab entrance 3388 | -9/Mines | Discovered new exit (range 5) 3631 | -9/Mines | Discovered new exit (range 5) 3831 | -9/Mines | Entered Exiles 3831 | -9/Exiles | Found Exiles lab abandoned 3831 | -9/Exiles | Accompanied by 5 allies 3861 | -9/Exiles | Led the pair of lost Derelicts to a safe place 4299 | -9/Exiles | Discovered new exit (range 14) 4317 | -9/Exiles | Entered Mines 4317 | -8/Mines | Accompanied by 3 allies 4561 | -8/Mines | Discovered new exit (range 13) 4778 | -8/Mines | Discovered new exit (range 11) 5039 | -8/Mines | Entered Materials 5039 | -8/Materials | Accompanied by 2 allies 5039 | -8/Materials | Evolved 2 slots: Utility x2 5040 | -8/Materials | Identified exit to Factory 5064 | -8/Materials | Identified exit to Garrison 5064 | -8/Materials | Entered Garrison 5064 | -8/Garrison | Accompanied by 2 allies 5081 | -8/Garrison | Triggered checkpoint 5170 | -8/Garrison | Triggered checkpoint 5314 | -8/Garrison | Garrison Relay disabled 5428 | -8/Garrison | Lost 3 parts (2u1w) 5718 | -8/Garrison | Triggered checkpoint 6008 | -8/Garrison | Triggered checkpoint 6049 | -8/Garrison | Discovered new exit (range 59) 6049 | -8/Garrison | Discovered new exit (range 68) 6049 | -8/Garrison | Discovered new exit (range 22) 6049 | -8/Garrison | Discovered new exit (range 40) 6125 | -8/Garrison | Garrison Relay disabled 6210 | -8/Garrison | Triggered checkpoint 6352 | -8/Garrison | Triggered checkpoint 6607 | -8/Garrison | Phase Generator disabled 6680 | -8/Garrison | Garrison Relay disabled 6682 | -8/Garrison | Triggered checkpoint 6704 | -8/Garrison | Garrison Relay disabled 6881 | -8/Garrison | Entered Materials 7145 | -8/Materials | Lost 3 parts (1n2u) 7278 | -8/Materials | Destroyed 7 combat bots 7334 | -8/Materials | Discovered exit to Factory (range 15) 7681 | -8/Materials | First assault squad dispatched 7827 | -8/Materials | Core integrity fell below 50% 7906 | -8/Materials | Lost 3 parts (2u1w) 8292 | -8/Materials | Discovered exit to Factory (range 16) 8387 | -8/Materials | Core integrity fell below 20% 8646 | -8/Materials | Central database locked down 8664 | -8/Materials | Garrison activated, responded to threat 8711 | -8/Materials | Identified exit to Garrison 8711 | -8/Materials | Entered Garrison 8773 | -8/Garrison | Triggered checkpoint 8871 | -8/Garrison | Garrison Relay disabled 8908 | -8/Garrison | Garrison Relay disabled 8956 | -8/Garrison | Triggered checkpoint 9028 | -8/Garrison | Triggered checkpoint 9064 | -8/Garrison | Destroyed by G-47 Trooper with Particle Gun Last Messages --------------- 09020_ Penetrated by Slug. 09020_ Arm. Wheel destroyed. 09023_ Penetrated by Slug. 09026_ H-55 Commando misfires. 09028_ Beams of light sweep through the air. An alarm sounds. 09029_ H-55 Commando IFF system glitched. 09032_ Penetrated by Slug. 09032_ Reflective Plating destroyed. 09032_ H-55 Commando destroyed. 09032_ Switching to secondary target: G-47 Trooper. 09034_ G-47 Trooper destroyed. 09040_ Acquired 42 matter. 09049_ Lgt. Armor Plating destroyed. 09053_ Imp. Deuterium Engine destroyed. 09055_ G-47 Trooper destroyed. 09055_ Switching to secondary target: G-47 Trooper. 09057_ G-47 Trooper suffers critical hit (Destroy). 09057_ G-47 Trooper destroyed. 09058_ System corrupted: Matter fused (-6). 09059_ Acquired 53 matter. Map ----- +----------------------------------------------------+ | ????????????????????+????????????????????????????? | | ?????????????????????????????????????????????????? | | ?????????????????????????????????????????????????? | | ?????????????????????????????????????????????????? | | ???????????????????????+?????????????????????????? | | ?????????????????????????????????????????????????? | | ?????????????????????????????????????????????????? | | ?????????????????????????????????????????????????? | | ?????????????????????????????????????????????????? | | ???????????????????????????+??????????????????+??? | | ?????????????????????????????????????????????????? | | ????????????"????????+???????????????????????????? | | ?????????? ????????????????????????????????????? | | ?????????? ???????????????????????????????????? | | ?????????? ??????????????????????????????????? | | ???????????# ?????????+???????????????????????? | | ??????????## ##???????????????????????????????? | | ??????????? ????+?????????????????????????? | | ????????????? ??????????????????????????????? | | ?????????????? ?????????????????????????????? | | ???????????????? ?????????????#???????????????? | | ?????????????????# ???????#### ###?????????????? | | ???????????# ## ####### #?????????????? | | ?????? [%=%![ #############""" | | ?????? ![=** " ! | | ??????# ####@# ###### #### | | ???????#+### ## #???#=# ####????# #??????? | | ???????????#?????# ????# ## ##???????# #??????? | | ?????????????????# ?????# ## ##???????##"##?????? | | ?????????????????# ?????# ## #????????# #?????? | | ?????????????????#??+??? g## ########## ####??? | | ????????????????????????# + " !"*= #??? | | ????????????????????????#### ##### #T####### ###? | | ?????????????????# ######## #???#[###?????# #"#? | | ?????????????????# ^^#####*#???????# !"#? | | ?????????????????# #???????# !!#? | | ????????????????????######## #######???????# !"#? | | ?????????????????###???????# #?????????????# #"#? | | ?????????????????""""??????# #?????????????#"###? | | ????????????????"""!!!?????# #?????????????# #??? | | ???????????????#"" ???# #????????????# #??? | | ???????????????#"! ??# #????????????# #??? | | ?+?????????????#"! ## #################??? | | ???????????????#"! + #?????? | | ???????????????#"! + #?????? | | ???????????????#"" ############## #?????? | | ????????????????"""!!!!!!??????????????# #?????? | | ?????????????????"""""""???????????????#####?????? | | ??????????????????####???????????????????????????? | | ?????????????????????????????????????????????????? | +----------------------------------------------------+ Best States ------------- Heat Dissipation 72 Energy Generation 18 Energy Capacity 290 Matter Stores 300 Matter Capacity 300 Sight Range 16 Terrain Scan Density 10 Armor Coverage 450 Resistance: TH 10 Power Shielding 66 Utility Shielding 66 Weapon Shielding 33 Evasion (%) 45 Targeting Accuracy 6 Particle Charging 15 Offensive Hacking 10 Defensive Hacking 10 Item Schematics ----------------- Cargo Storage Unit | -9/Materials | Scanalyzed Lrg. Battery | -9/Materials | Extracted ECM Suite | -9/Materials | Extracted Imp. Treads | -9/Materials | Extracted Lgt. EM Pulse Cannon | -9/Materials | Extracted EMP Blaster | -9/Materials | Extracted Hvy. EM Pulse Gun | -9/Materials | Extracted Transport Network Coupler | -8/Materials | Extracted Assault Cannon | -8/Materials | Extracted Titanium Leg | -8/Materials | Extracted Robot Schematics ------------------ None Fabricated ------------ Nothing Alien Tech Used ----------------- None Achievements -------------- None Challenges ------------ None Game ------ Seed BehemothAdvancedRedirector Manual? 0 Play Time 01:12:47 Cumulative 423.9 hours Start 2023.03.07 @ 06:43:12 End 2023.03.07 @ 07:53:22 Sessions 1 Manual Loads 0 Difficulty Rogue Special Mode None Game No. 480 Rogue 480 Adventurer 0 Explorer 0 Win Type - Total 0 Types 0/0/0/0/0/0/0/0/0 Lore% 56 Gallery% 77 Achievement% 63 Wizard Run 0 Options --------- ASCII 0 Keyboard 0 Movement Mouse Keybinds 0 Fullscreen 2 Font 24/Smallcaps Map View 76x50 Tactical HUD 1 Map Filters NONE Filters NONE Steam 1 RUN: 16c60026-aba5-46c5-8ece-61244e975bf6